[Event "Titled Tuesday Blitz May 4 2021"]
[White "Tang, Andrew"]
[Black "Nakamura, Hikaru"]
[WhiteFideId "2059630"]
[BlackFideId "2016192"]
[WhiteElo "2584"]
[BlackElo "2900"]
[Result "0-1"]
[Round "10"]
[TimeControl "180+1"]
[Date "2021.05.04"]
[WhiteClock "0:00:03"]
[BlackClock "0:00:09"]

1. d4 {[%clk 0:03:00]}  b6 {[%clk 0:02:57]} 2. Bf4 {[%clk 0:02:47]}  Bb7 {[%clk 0:02:58]} 3. e3 {[%clk 0:02:48]}  g6 {[%clk 0:02:52]} 4. a4 {[%clk 0:02:14]}  a5 {[%clk 0:02:45]} 5. Nf3 {[%clk 0:02:09]}  Bg7 {[%clk 0:02:44]} 6. Nbd2 {[%clk 0:02:08]}  d6 {[%clk 0:02:43]} 7. Bb5+ {[%clk 0:02:05]}  Nd7 {[%clk 0:02:43]} 8. O-O {[%clk 0:02:05]}  Nf6 {[%clk 0:02:43]} 9. h3 {[%clk 0:02:04]}  O-O {[%clk 0:02:43]} 10. Re1 {[%clk 0:02:05]}  Re8 {[%clk 0:02:42]} 11. e4 {[%clk 0:01:48]}  e5 {[%clk 0:02:38]} 12. dxe5 {[%clk 0:01:48]}  dxe5 {[%clk 0:02:39]} 13. Bg5 {[%clk 0:01:45]}  Qe7 {[%clk 0:02:30]} 14. c3 {[%clk 0:01:39]}  Red8 {[%clk 0:02:27]} 15. Qc2 {[%clk 0:01:39]}  h6 {[%clk 0:02:23]} 16. Bh4 {[%clk 0:01:39]}  Nc5 {[%clk 0:02:23]} 17. Bc4 {[%clk 0:01:00]}  Kh7 {[%clk 0:01:47]} 18. b4 {[%clk 0:00:40]}  Ne6 {[%clk 0:01:44]} 19. Nxe5 {[%clk 0:00:33]}  axb4 {[%clk 0:01:40]} 20. Ng4 {[%clk 0:00:32]}  Ng5 {[%clk 0:01:16]} 21. e5 {[%clk 0:00:12]}  Nxg4 {[%clk 0:01:13]} 22. hxg4 {[%clk 0:00:12]}  Nh3+ {[%clk 0:01:04]} 23. gxh3 {[%clk 0:00:09]}  Qxh4 {[%clk 0:01:05]} 24. Re3 {[%clk 0:00:08]}  bxc3 {[%clk 0:01:01]} 25. Qxc3 {[%clk 0:00:07]}  Rd7 {[%clk 0:01:00]} 26. Ne4 {[%clk 0:00:03]}  Rad8 {[%clk 0:00:56]} 27. Rae1 {[%clk 0:00:02]}  Re7 {[%clk 0:00:38]} 28. Nf6+ {[%clk 0:00:03]}  Kh8 {[%clk 0:00:39]} 29. f4 {[%clk 0:00:03]}  h5 {[%clk 0:00:30]} 30. Rf1 {[%clk 0:00:02]}  Bxf6 {[%clk 0:00:16]} 31. exf6 {[%clk 0:00:02]}  Rxe3 {[%clk 0:00:17]} 32. Qxe3 {[%clk 0:00:03]}  hxg4 {[%clk 0:00:18]} 33. Bxf7 {[%clk 0:00:03]}  Qxf6 {[%clk 0:00:16]} 34. Be6 {[%clk 0:00:03]}  g3 {[%clk 0:00:11]} 35. Re1 {[%clk 0:00:03]}  Re8 {[%clk 0:00:09]} 36. Qe5 {[%clk 0:00:02]}  Qxe5 {[%clk 0:00:08]} 37. Rxe5 {[%clk 0:00:03]}  Rd8 {[%clk 0:00:09]} 38. Bc4 {[%clk 0:00:02]}  Rd1+ {[%clk 0:00:08]} 39. Bf1 {[%clk 0:00:03]}  g2 {[%clk 0:00:09]} 0-1


[Site "https://www.chess.com"]

[Event "Titled Tuesday Blitz May 4 2021"]
[White "The_filthy"]
[Black "Nozdrachev, Leonid"]
[BlackFideId "24113433"]
[WhiteElo "2418"]
[BlackElo "2246"]
[Result "0-1"]
[Round "10"]
[TimeControl "180+1"]
[Date "2021.05.04"]
[WhiteClock "0:00:20"]
[BlackClock "0:01:02"]

1. e4 {[%clk 0:03:00]}  d6 {[%clk 0:02:59]} 2. d4 {[%clk 0:03:00]}  Nf6 {[%clk 0:02:58]} 3. Nc3 {[%clk 0:03:00]}  e5 {[%clk 0:02:58]} 4. Nf3 {[%clk 0:03:00]}  Nbd7 {[%clk 0:02:58]} 5. Bc4 {[%clk 0:02:56]}  Be7 {[%clk 0:02:58]} 6. O-O {[%clk 0:02:55]}  O-O {[%clk 0:02:58]} 7. a4 {[%clk 0:02:55]}  c6 {[%clk 0:02:59]} 8. dxe5 {[%clk 0:02:52]}  dxe5 {[%clk 0:02:57]} 9. Qe2 {[%clk 0:02:49]}  Bb4 {[%clk 0:02:56]} 10. Bg5 {[%clk 0:02:45]}  h6 {[%clk 0:02:55]} 11. Bh4 {[%clk 0:02:40]}  Qa5 {[%clk 0:02:56]} 12. Rad1 {[%clk 0:02:25]}  Bxc3 {[%clk 0:02:52]} 13. bxc3 {[%clk 0:02:25]}  Qxc3 {[%clk 0:02:51]} 14. Bb3 {[%clk 0:02:17]}  a5 {[%clk 0:02:42]} 15. Nd2 {[%clk 0:01:56]}  b5 {[%clk 0:02:39]} 16. axb5 {[%clk 0:01:35]}  cxb5 {[%clk 0:02:40]} 17. Nb1 {[%clk 0:01:30]}  Qb4 {[%clk 0:02:35]} 18. f4 {[%clk 0:01:20]}  a4 {[%clk 0:02:23]} 19. fxe5 {[%clk 0:01:14]}  Qc5+ {[%clk 0:02:04]} 20. Bf2 {[%clk 0:01:04]}  Qxe5 {[%clk 0:02:02]} 21. Bd5 {[%clk 0:01:04]}  Nxd5 {[%clk 0:01:58]} 22. Rxd5 {[%clk 0:01:03]}  Qe6 {[%clk 0:01:50]} 23. Qxb5 {[%clk 0:00:47]}  Ba6 {[%clk 0:01:29]} 24. Qxd7 {[%clk 0:00:39]}  Qxd7 {[%clk 0:01:29]} 25. Rxd7 {[%clk 0:00:40]}  Bxf1 {[%clk 0:01:29]} 26. Kxf1 {[%clk 0:00:40]}  a3 {[%clk 0:01:29]} 27. Nxa3 {[%clk 0:00:39]}  Rxa3 {[%clk 0:01:28]} 28. Bc5 {[%clk 0:00:39]}  Ra1+ {[%clk 0:01:27]} 29. Kf2 {[%clk 0:00:37]}  Re8 {[%clk 0:01:27]} 30. Rd4 {[%clk 0:00:34]}  Ra2 {[%clk 0:01:24]} 31. Rc4 {[%clk 0:00:34]}  Rc8 {[%clk 0:01:23]} 32. Ke3 {[%clk 0:00:32]}  Ra1 {[%clk 0:01:17]} 33. h3 {[%clk 0:00:28]}  Rd1 {[%clk 0:01:11]} 34. c3 {[%clk 0:00:25]}  Rdd8 {[%clk 0:01:05]} 35. e5 {[%clk 0:00:20]}  Rd5 {[%clk 0:01:02]} 0-1


[Site "https://www.chess.com"]

[Event "Titled Tuesday Blitz May 4 2021"]
[White "Triapishko, Alexandr"]
[Black "Quintiliano Pinto, Renato R."]
[WhiteFideId "14122286"]
[BlackFideId "2117568"]
[WhiteElo "2490"]
[BlackElo "2439"]
[Result "1-0"]
[Round "10"]
[TimeControl "180+1"]
[Date "2021.05.04"]
[WhiteClock "0:00:02"]
[BlackClock "0:00:02"]

1. d4 {[%clk 0:02:49]}  d5 {[%clk 0:02:59]} 2. c4 {[%clk 0:02:48]}  c6 {[%clk 0:02:59]} 3. Nf3 {[%clk 0:02:38]}  Nf6 {[%clk 0:02:58]} 4. Nc3 {[%clk 0:02:38]}  dxc4 {[%clk 0:02:58]} 5. a4 {[%clk 0:02:37]}  Bf5 {[%clk 0:02:57]} 6. Ne5 {[%clk 0:02:34]}  Nbd7 {[%clk 0:02:57]} 7. Nxc4 {[%clk 0:02:34]}  Qc7 {[%clk 0:02:57]} 8. g3 {[%clk 0:02:31]}  e5 {[%clk 0:02:56]} 9. dxe5 {[%clk 0:02:32]}  Nxe5 {[%clk 0:02:55]} 10. Bf4 {[%clk 0:02:32]}  Nfd7 {[%clk 0:02:55]} 11. Bg2 {[%clk 0:02:29]}  g5 {[%clk 0:02:53]} 12. Nxe5 {[%clk 0:02:23]}  gxf4 {[%clk 0:02:50]} 13. Nxd7 {[%clk 0:02:23]}  O-O-O {[%clk 0:02:50]} 14. Qd4 {[%clk 0:02:22]}  Qxd7 {[%clk 0:02:26]} 15. Qxf4 {[%clk 0:02:20]}  Bd6 {[%clk 0:02:09]} 16. Qh6 {[%clk 0:02:17]}  a5 {[%clk 0:01:54]} 17. O-O {[%clk 0:02:14]}  Kb8 {[%clk 0:01:51]} 18. Rfd1 {[%clk 0:02:11]}  Qe6 {[%clk 0:01:51]} 19. Qh4 {[%clk 0:01:59]}  h5 {[%clk 0:01:47]} 20. e3 {[%clk 0:01:39]}  Bg4 {[%clk 0:01:40]} 21. Qg5 {[%clk 0:01:09]}  Bxd1 {[%clk 0:01:38]} 22. Rxd1 {[%clk 0:01:10]}  Be7 {[%clk 0:01:27]} 23. Qxa5 {[%clk 0:00:56]}  Rxd1+ {[%clk 0:01:25]} 24. Nxd1 {[%clk 0:00:57]}  h4 {[%clk 0:01:25]} 25. Nc3 {[%clk 0:00:53]}  hxg3 {[%clk 0:01:24]} 26. hxg3 {[%clk 0:00:53]}  Qd6 {[%clk 0:01:12]} 27. Bf3 {[%clk 0:00:41]}  Qf6 {[%clk 0:01:03]} 28. Kg2 {[%clk 0:00:37]}  Qh6 {[%clk 0:00:58]} 29. Kf1 {[%clk 0:00:32]}  Qh3+ {[%clk 0:00:51]} 30. Bg2 {[%clk 0:00:28]}  Qe6 {[%clk 0:00:51]} 31. Qb6 {[%clk 0:00:15]}  Bf6 {[%clk 0:00:46]} 32. Qc5 {[%clk 0:00:04]}  Rd8 {[%clk 0:00:40]} 33. Kg1 {[%clk 0:00:03]}  Qb3 {[%clk 0:00:29]} 34. Qf5 {[%clk 0:00:01]}  Bxc3 {[%clk 0:00:16]} 35. bxc3 {[%clk 0:00:02]}  Qd1+ {[%clk 0:00:13]} 36. Kh2 {[%clk 0:00:02]}  Rh8+ {[%clk 0:00:11]} 37. Bh3 {[%clk 0:00:02]}  Qd5 {[%clk 0:00:10]} 38. Qf4+ {[%clk 0:00:02]}  Ka7 {[%clk 0:00:10]} 39. g4 {[%clk 0:00:02]}  Kb6 {[%clk 0:00:07]} 40. Kg3 {[%clk 0:00:02]}  Qh1 {[%clk 0:00:05]} 41. Qd4+ {[%clk 0:00:02]}  Ka6 {[%clk 0:00:05]} 42. Qxh8 {[%clk 0:00:03]}  Qg1+ {[%clk 0:00:03]} 43. Kf3 {[%clk 0:00:04]}  Qd1+ {[%clk 0:00:03]} 44. Kg2 {[%clk 0:00:04]}  Qd5+ {[%clk 0:00:03]} 45. Kh2 {[%clk 0:00:03]}  Qd6+ {[%clk 0:00:03]} 46. Kh1 {[%clk 0:00:02]}  Qe5 {[%clk 0:00:02]} 47. Qxe5 {[%clk 0:00:02]} 1-0


[Site "https://www.chess.com"]

[Event "Titled Tuesday Blitz May 4 2021"]
[White "Urazayev, Arystanbek"]
[Black "Avila Pavas, Santiago"]
[WhiteFideId "13709810"]
[BlackFideId "4437128"]
[WhiteElo "2805"]
[BlackElo "2632"]
[Result "1-0"]
[Round "10"]
[TimeControl "180+1"]
[Date "2021.05.04"]
[WhiteClock "0:00:32"]
[BlackClock "0:00:03"]

1. e4 {[%clk 0:03:00]}  Nf6 {[%clk 0:03:00]} 2. e5 {[%clk 0:03:00]}  Nd5 {[%clk 0:03:01]} 3. Nc3 {[%clk 0:03:01]}  Nxc3 {[%clk 0:03:01]} 4. dxc3 {[%clk 0:03:02]}  d6 {[%clk 0:03:01]} 5. Nf3 {[%clk 0:03:02]}  Nc6 {[%clk 0:03:01]} 6. Bb5 {[%clk 0:03:02]}  Bd7 {[%clk 0:02:58]} 7. Qe2 {[%clk 0:03:02]}  g6 {[%clk 0:02:51]} 8. Bf4 {[%clk 0:03:00]}  Bg7 {[%clk 0:02:44]} 9. O-O-O {[%clk 0:03:00]}  O-O {[%clk 0:02:43]} 10. h3 {[%clk 0:02:48]}  Qe8 {[%clk 0:02:40]} 11. Bc4 {[%clk 0:02:44]}  Na5 {[%clk 0:02:34]} 12. Bd3 {[%clk 0:02:29]}  d5 {[%clk 0:02:25]} 13. h4 {[%clk 0:02:16]}  c5 {[%clk 0:02:25]} 14. h5 {[%clk 0:01:56]}  c4 {[%clk 0:02:23]} 15. hxg6 {[%clk 0:01:56]}  fxg6 {[%clk 0:02:18]} 16. Bh6 {[%clk 0:01:23]}  cxd3 {[%clk 0:02:11]} 17. Qxd3 {[%clk 0:01:21]}  Bxh6+ {[%clk 0:00:53]} 18. Rxh6 {[%clk 0:01:20]}  Qf7 {[%clk 0:00:54]} 19. Rdh1 {[%clk 0:01:14]}  Nc6 {[%clk 0:00:37]} 20. e6 {[%clk 0:01:03]}  Bxe6 {[%clk 0:00:23]} 21. Rxh7 {[%clk 0:01:03]}  Qf5 {[%clk 0:00:23]} 22. Qe3 {[%clk 0:00:53]}  d4 {[%clk 0:00:07]} 23. Qh6 {[%clk 0:00:32]}  Rac8 {[%clk 0:00:03]} 24. Qg7# {[%clk 0:00:32]} 1-0


[Site "https://www.chess.com"]

[Event "Titled Tuesday Blitz May 4 2021"]
[White "Vasquez Schroeder, Rodrigo"]
[Black "Rustemov, Alexander"]
[WhiteFideId "3400042"]
[BlackFideId "4119002"]
[WhiteElo "2572"]
[BlackElo "2633"]
[Result "0-1"]
[Round "10"]
[TimeControl "180+1"]
[Date "2021.05.04"]
[WhiteClock "0:00:22"]
[BlackClock "0:00:39"]

1. e4 {[%clk 0:03:00]}  e6 {[%clk 0:03:00]} 2. d4 {[%clk 0:03:00]}  d5 {[%clk 0:03:00]} 3. e5 {[%clk 0:02:57]}  c5 {[%clk 0:03:00]} 4. c3 {[%clk 0:02:57]}  Qb6 {[%clk 0:02:59]} 5. Nf3 {[%clk 0:02:57]}  Bd7 {[%clk 0:03:00]} 6. Bd3 {[%clk 0:02:57]}  cxd4 {[%clk 0:02:59]} 7. Nxd4 {[%clk 0:02:56]}  Ne7 {[%clk 0:02:53]} 8. O-O {[%clk 0:02:53]}  Nbc6 {[%clk 0:02:53]} 9. Nf3 {[%clk 0:02:49]}  h6 {[%clk 0:02:47]} 10. Nbd2 {[%clk 0:02:43]}  g5 {[%clk 0:02:38]} 11. h3 {[%clk 0:02:40]}  Bg7 {[%clk 0:02:37]} 12. Re1 {[%clk 0:02:40]}  Ng6 {[%clk 0:02:17]} 13. Bxg6 {[%clk 0:02:37]}  fxg6 {[%clk 0:02:18]} 14. Qc2 {[%clk 0:02:34]}  O-O {[%clk 0:02:16]} 15. Qxg6 {[%clk 0:02:30]}  Rf5 {[%clk 0:02:16]} 16. Nf1 {[%clk 0:02:23]}  Raf8 {[%clk 0:01:41]} 17. Ng3 {[%clk 0:02:19]}  Ne7 {[%clk 0:01:32]} 18. Qh5 {[%clk 0:02:13]}  Be8 {[%clk 0:01:32]} 19. Qg4 {[%clk 0:01:09]}  Rf4 {[%clk 0:01:31]} 20. Be3 {[%clk 0:01:09]}  Qa6 {[%clk 0:01:25]} 21. Bxf4 {[%clk 0:01:04]}  Rxf4 {[%clk 0:01:26]} 22. Qxf4 {[%clk 0:01:01]}  gxf4 {[%clk 0:01:27]} 23. Ne2 {[%clk 0:01:02]}  Ng6 {[%clk 0:01:24]} 24. Ned4 {[%clk 0:01:02]}  Bb5 {[%clk 0:01:19]} 25. a4 {[%clk 0:00:56]}  Bd3 {[%clk 0:01:19]} 26. b4 {[%clk 0:00:57]}  Be4 {[%clk 0:01:19]} 27. a5 {[%clk 0:00:56]}  Qc4 {[%clk 0:01:14]} 28. Rac1 {[%clk 0:00:53]}  Kf7 {[%clk 0:01:12]} 29. Nd2 {[%clk 0:00:51]}  Qd3 {[%clk 0:01:11]} 30. Red1 {[%clk 0:00:46]}  Nxe5 {[%clk 0:01:08]} 31. N2f3 {[%clk 0:00:45]}  Qc4 {[%clk 0:00:58]} 32. Nd2 {[%clk 0:00:43]}  Qc8 {[%clk 0:00:52]} 33. c4 {[%clk 0:00:36]}  Nd3 {[%clk 0:00:50]} 34. Nxe4 {[%clk 0:00:34]}  dxe4 {[%clk 0:00:49]} 35. Nb5 {[%clk 0:00:35]}  Kg6 {[%clk 0:00:45]} 36. Rc2 {[%clk 0:00:32]}  Qd7 {[%clk 0:00:42]} 37. Re2 {[%clk 0:00:30]}  a6 {[%clk 0:00:41]} 38. Na3 {[%clk 0:00:22]}  Qa4 {[%clk 0:00:39]} 0-1


[Site "https://www.chess.com"]

[Event "Titled Tuesday Blitz May 4 2021"]
[White "Villegas, Pierre"]
[Black "Moultino06"]
[WhiteFideId "654183"]
[WhiteElo "2411"]
[BlackElo "2701"]
[Result "1/2-1/2"]
[Round "10"]
[TimeControl "180+1"]
[Date "2021.05.04"]
[WhiteClock "0:00:18"]
[BlackClock "0:00:08"]

1. d4 {[%clk 0:02:33]}  Nf6 {[%clk 0:02:58]} 2. c4 {[%clk 0:02:33]}  g6 {[%clk 0:02:59]} 3. f3 {[%clk 0:02:33]}  e6 {[%clk 0:02:58]} 4. e4 {[%clk 0:02:31]}  d5 {[%clk 0:02:58]} 5. cxd5 {[%clk 0:02:31]}  exd5 {[%clk 0:02:58]} 6. Nc3 {[%clk 0:02:31]}  dxe4 {[%clk 0:02:54]} 7. fxe4 {[%clk 0:02:32]}  Nc6 {[%clk 0:02:45]} 8. Nf3 {[%clk 0:02:28]}  Bb4 {[%clk 0:02:22]} 9. Bg5 {[%clk 0:02:20]}  h6 {[%clk 0:02:19]} 10. Bxf6 {[%clk 0:02:20]}  Qxf6 {[%clk 0:02:20]} 11. Bb5 {[%clk 0:02:19]}  Bg4 {[%clk 0:02:14]} 12. O-O {[%clk 0:02:15]}  O-O-O {[%clk 0:02:12]} 13. Nd5 {[%clk 0:02:07]}  Bxf3 {[%clk 0:02:04]} 14. Bxc6 {[%clk 0:01:51]}  Bxd1 {[%clk 0:01:51]} 15. Rxf6 {[%clk 0:01:50]}  bxc6 {[%clk 0:01:26]} 16. Nxb4 {[%clk 0:01:41]}  Ba4 {[%clk 0:01:02]} 17. d5 {[%clk 0:00:53]}  cxd5 {[%clk 0:00:51]} 18. Nxd5 {[%clk 0:00:54]}  Bc2 {[%clk 0:00:52]} 19. Rc1 {[%clk 0:00:25]}  Bxe4 {[%clk 0:00:50]} 20. Nxc7 {[%clk 0:00:26]}  Kb8 {[%clk 0:00:18]} 21. Na6+ {[%clk 0:00:20]}  Ka8 {[%clk 0:00:16]} 22. Nc7+ {[%clk 0:00:19]}  Kb8 {[%clk 0:00:15]} 23. Na6+ {[%clk 0:00:19]}  Ka8 {[%clk 0:00:13]} 24. Nc7+ {[%clk 0:00:18]}  Kb8 {[%clk 0:00:08]} 1/2-1/2


[Site "https://www.chess.com"]

[Event "Titled Tuesday Blitz May 4 2021"]
[White "Vlassov, Nikolai"]
[Black "Voege, Tobias"]
[WhiteFideId "4103360"]
[BlackFideId "1270513"]
[WhiteElo "2407"]
[BlackElo "2283"]
[Result "1-0"]
[Round "10"]
[TimeControl "180+1"]
[Date "2021.05.04"]
[WhiteClock "0:01:52"]
[BlackClock "0:01:06"]

1. e4 {[%clk 0:03:00]}  c5 {[%clk 0:02:52]} 2. c3 {[%clk 0:03:00]}  g6 {[%clk 0:02:51]} 3. d4 {[%clk 0:03:00]}  cxd4 {[%clk 0:02:52]} 4. cxd4 {[%clk 0:03:00]}  d5 {[%clk 0:02:51]} 5. e5 {[%clk 0:03:01]}  Nc6 {[%clk 0:02:51]} 6. Nc3 {[%clk 0:03:01]}  Bg7 {[%clk 0:02:48]} 7. Bf4 {[%clk 0:02:59]}  f6 {[%clk 0:02:48]} 8. Nf3 {[%clk 0:02:56]}  fxe5 {[%clk 0:02:43]} 9. dxe5 {[%clk 0:02:51]}  d4 {[%clk 0:02:26]} 10. Nb5 {[%clk 0:02:44]}  Bg4 {[%clk 0:02:23]} 11. Nbxd4 {[%clk 0:02:20]}  Nxe5 {[%clk 0:01:18]} 12. Nxe5 {[%clk 0:01:54]}  Bxd1 {[%clk 0:01:07]} 13. Bb5+ {[%clk 0:01:52]}  Kf8 {[%clk 0:01:06]} 14. Ne6# {[%clk 0:01:52]} 1-0


[Site "https://www.chess.com"]

[Event "Titled Tuesday Blitz May 4 2021"]
[White "Wagner, Dennis"]
[Black "Priyanka, K"]
[WhiteFideId "24650684"]
[BlackFideId "5082986"]
[WhiteElo "2355"]
[BlackElo "1893"]
[Result "1-0"]
[Round "10"]
[TimeControl "180+1"]
[Date "2021.05.04"]
[WhiteClock "0:01:15"]
[BlackClock "0:00:08"]

1. e4 {[%clk 0:03:00]}  c5 {[%clk 0:02:58]} 2. Nf3 {[%clk 0:02:59]}  d6 {[%clk 0:02:59]} 3. Bb5+ {[%clk 0:02:58]}  Nd7 {[%clk 0:02:58]} 4. O-O {[%clk 0:02:58]}  a6 {[%clk 0:02:57]} 5. Bxd7+ {[%clk 0:02:57]}  Bxd7 {[%clk 0:02:55]} 6. c3 {[%clk 0:02:58]}  Nf6 {[%clk 0:02:54]} 7. Re1 {[%clk 0:02:58]}  e6 {[%clk 0:02:43]} 8. d4 {[%clk 0:02:58]}  cxd4 {[%clk 0:02:42]} 9. cxd4 {[%clk 0:02:59]}  Be7 {[%clk 0:02:43]} 10. Nc3 {[%clk 0:02:56]}  O-O {[%clk 0:02:42]} 11. e5 {[%clk 0:02:56]}  Ne8 {[%clk 0:02:38]} 12. d5 {[%clk 0:02:56]}  dxe5 {[%clk 0:02:36]} 13. Nxe5 {[%clk 0:02:55]}  exd5 {[%clk 0:02:23]} 14. Nxd5 {[%clk 0:02:56]}  Be6 {[%clk 0:02:20]} 15. Nxe7+ {[%clk 0:02:41]}  Qxe7 {[%clk 0:02:20]} 16. Qf3 {[%clk 0:02:31]}  Rd8 {[%clk 0:02:07]} 17. Bf4 {[%clk 0:02:04]}  Nd6 {[%clk 0:02:01]} 18. Rac1 {[%clk 0:01:58]}  Qf6 {[%clk 0:01:55]} 19. b3 {[%clk 0:01:51]}  h6 {[%clk 0:01:50]} 20. Rc7 {[%clk 0:01:49]}  Rc8 {[%clk 0:01:42]} 21. Nd7 {[%clk 0:01:41]}  Bxd7 {[%clk 0:01:33]} 22. Rxd7 {[%clk 0:01:42]}  Rfd8 {[%clk 0:01:19]} 23. Rxd6 {[%clk 0:01:41]}  Rxd6 {[%clk 0:01:18]} 24. Bxd6 {[%clk 0:01:42]}  Qxd6 {[%clk 0:01:19]} 25. Qxb7 {[%clk 0:01:42]}  Rc2 {[%clk 0:00:37]} 26. g3 {[%clk 0:01:27]}  Qd2 {[%clk 0:00:29]} 27. Re8+ {[%clk 0:01:22]}  Kh7 {[%clk 0:00:29]} 28. Qxf7 {[%clk 0:01:22]}  Rc1+ {[%clk 0:00:12]} 29. Kg2 {[%clk 0:01:22]}  Qd3 {[%clk 0:00:12]} 30. Qg8+ {[%clk 0:01:18]}  Kg6 {[%clk 0:00:11]} 31. Re6+ {[%clk 0:01:17]}  Kh5 {[%clk 0:00:08]} 32. Qf7+ {[%clk 0:01:17]}  g6 {[%clk 0:00:07]} 33. Re5+ {[%clk 0:01:15]}  Kg4 {[%clk 0:00:08]} 34. h3# {[%clk 0:01:15]} 1-0


[Site "https://www.chess.com"]

[Event "Titled Tuesday Blitz May 4 2021"]
[White "WelshTiger"]
[Black "tylityli"]
[WhiteElo "2449"]
[BlackElo "2350"]
[Result "0-1"]
[Round "10"]
[TimeControl "180+1"]
[Date "2021.05.04"]
[WhiteClock "0:00:06"]
[BlackClock "0:00:53"]

1. d4 {[%clk 0:03:00]}  Nf6 {[%clk 0:02:59]} 2. Nf3 {[%clk 0:03:00]}  d5 {[%clk 0:02:58]} 3. Bf4 {[%clk 0:02:44]}  c5 {[%clk 0:02:57]} 4. e3 {[%clk 0:02:43]}  Nc6 {[%clk 0:02:57]} 5. Be2 {[%clk 0:02:36]}  a6 {[%clk 0:02:53]} 6. O-O {[%clk 0:02:36]}  Qb6 {[%clk 0:02:35]} 7. b3 {[%clk 0:02:20]}  Bf5 {[%clk 0:02:30]} 8. Nc3 {[%clk 0:01:50]}  cxd4 {[%clk 0:02:27]} 9. exd4 {[%clk 0:01:50]}  e6 {[%clk 0:02:27]} 10. Na4 {[%clk 0:01:48]}  Qa5 {[%clk 0:02:22]} 11. c4 {[%clk 0:01:43]}  Be7 {[%clk 0:02:16]} 12. c5 {[%clk 0:01:40]}  Qd8 {[%clk 0:01:57]} 13. Nb6 {[%clk 0:01:41]}  Ra7 {[%clk 0:01:56]} 14. Qe1 {[%clk 0:01:18]}  Nd7 {[%clk 0:01:51]} 15. Nxd7 {[%clk 0:01:16]}  Qxd7 {[%clk 0:01:51]} 16. b4 {[%clk 0:01:16]}  O-O {[%clk 0:01:48]} 17. a4 {[%clk 0:01:16]}  Bf6 {[%clk 0:01:45]} 18. Qc3 {[%clk 0:01:16]}  Be4 {[%clk 0:01:39]} 19. b5 {[%clk 0:01:14]}  Nxd4 {[%clk 0:01:24]} 20. Nxd4 {[%clk 0:01:12]}  e5 {[%clk 0:01:24]} 21. Be3 {[%clk 0:01:02]}  exd4 {[%clk 0:01:23]} 22. Bxd4 {[%clk 0:01:03]}  Bxd4 {[%clk 0:01:17]} 23. Qxd4 {[%clk 0:01:04]}  Raa8 {[%clk 0:01:17]} 24. Rfc1 {[%clk 0:00:59]}  axb5 {[%clk 0:01:13]} 25. axb5 {[%clk 0:00:59]}  Rxa1 {[%clk 0:01:13]} 26. Rxa1 {[%clk 0:01:00]}  Rc8 {[%clk 0:01:11]} 27. Rc1 {[%clk 0:00:58]}  h6 {[%clk 0:01:07]} 28. Rd1 {[%clk 0:00:36]}  Qe7 {[%clk 0:01:04]} 29. Rc1 {[%clk 0:00:08]}  Bxg2 {[%clk 0:00:57]} 30. Kxg2 {[%clk 0:00:08]}  Qxe2 {[%clk 0:00:57]} 31. Qxd5 {[%clk 0:00:09]}  Qxb5 {[%clk 0:00:55]} 32. f3 {[%clk 0:00:08]}  Qb2+ {[%clk 0:00:53]} 33. Kg3 {[%clk 0:00:06]}  Qxc1 {[%clk 0:00:53]} 0-1


[Site "https://www.chess.com"]

[Event "Titled Tuesday Blitz May 4 2021"]
[White "Wilson, Elvin"]
[Black "PattyCastillo"]
[WhiteFideId "2014874"]
[WhiteElo "2224"]
[BlackElo "2022"]
[Result "1-0"]
[Round "10"]
[TimeControl "180+1"]
[Date "2021.05.04"]
[WhiteClock "0:00:27"]
[BlackClock "0:00:29"]

1. c4 {[%clk 0:03:00]}  c6 {[%clk 0:02:59]} 2. g3 {[%clk 0:02:57]}  d5 {[%clk 0:02:59]} 3. Nf3 {[%clk 0:02:57]}  Nf6 {[%clk 0:02:58]} 4. Bg2 {[%clk 0:02:56]}  e6 {[%clk 0:02:58]} 5. O-O {[%clk 0:02:54]}  Nbd7 {[%clk 0:02:57]} 6. d4 {[%clk 0:02:54]}  Bd6 {[%clk 0:02:57]} 7. Nbd2 {[%clk 0:02:53]}  O-O {[%clk 0:02:57]} 8. Qc2 {[%clk 0:02:54]}  Qe7 {[%clk 0:02:56]} 9. e4 {[%clk 0:02:54]}  dxe4 {[%clk 0:02:56]} 10. Nxe4 {[%clk 0:02:52]}  Nxe4 {[%clk 0:02:56]} 11. Qxe4 {[%clk 0:02:52]}  c5 {[%clk 0:02:50]} 12. b3 {[%clk 0:02:36]}  cxd4 {[%clk 0:02:47]} 13. Nxd4 {[%clk 0:02:35]}  Nf6 {[%clk 0:02:43]} 14. Qe2 {[%clk 0:02:32]}  a6 {[%clk 0:02:40]} 15. Bb2 {[%clk 0:02:28]}  e5 {[%clk 0:02:36]} 16. Rfe1 {[%clk 0:02:14]}  Bg4 {[%clk 0:02:27]} 17. Qc2 {[%clk 0:02:09]}  g6 {[%clk 0:02:15]} 18. Nf3 {[%clk 0:01:58]}  Bxf3 {[%clk 0:01:39]} 19. Bxf3 {[%clk 0:01:56]}  Qc7 {[%clk 0:01:37]} 20. Rad1 {[%clk 0:01:35]}  Rfe8 {[%clk 0:01:33]} 21. Re2 {[%clk 0:01:24]}  Rad8 {[%clk 0:01:32]} 22. Rde1 {[%clk 0:01:13]}  Nd7 {[%clk 0:01:29]} 23. h4 {[%clk 0:01:08]}  Nc5 {[%clk 0:01:26]} 24. h5 {[%clk 0:01:06]}  e4 {[%clk 0:01:15]} 25. hxg6 {[%clk 0:00:54]}  hxg6 {[%clk 0:01:15]} 26. Bxe4 {[%clk 0:00:53]}  Bxg3 {[%clk 0:01:01]} 27. Bd5 {[%clk 0:00:51]}  Bh2+ {[%clk 0:00:53]} 28. Kg2 {[%clk 0:00:45]}  Rxe2 {[%clk 0:00:48]} 29. Qxg6+ {[%clk 0:00:44]}  Kf8 {[%clk 0:00:42]} 30. Bg7+ {[%clk 0:00:39]}  Ke7 {[%clk 0:00:36]} 31. Rxe2+ {[%clk 0:00:33]}  Ne6 {[%clk 0:00:30]} 32. Rxe6+ {[%clk 0:00:28]}  fxe6 {[%clk 0:00:29]} 33. Qxe6# {[%clk 0:00:27]} 1-0


[Site "https://www.chess.com"]